fUST/lending_fUST_20260312
["ID","MTS","AMOUNT","RATE_DAILY","PERIOD"]
[408230648,1773269438673,-4162.7476971,0.00014173,2]
[408230649,1773269438682,-605.03204818,0.00014173,2]
[408230650,1773269438691,-16493.6657543,0.000142,2]
[408230651,1773269438703,-2897.83638261,0.000142,2]
[408230652,1773269438714,-226552.7174806,0.000142,2]
[408230653,1773269438725,-1614.48425141,0.000142,2]
[408230654,1773269438736,-395.61052402,0.000142,2]
[408230655,1773269438747,-1624.36896095,0.000142,2]
[408230656,1773269438758,-1135.05368756,0.000142,2]
[408230657,1773269438771,-350.17461451,0.000142,2]
[408230658,1773269438782,-789.29601842,0.000142,2]
[408230659,1773269438795,-636.20193591,0.000142,2]
[408230674,1773269443705,-7823.2805058,0.000142,2]
[408230675,1773269443718,-1114.15037311,0.000142,2]
[408230676,1773269443741,-95.33314251,0.000142,2]
[408230677,1773269443752,-49999.99999937,0.000142,2]
[408230715,1773269446591,-1863.03158687,0.000142,2]
[408230729,1773269446746,-2044.197429,0.000142,2]
[408230734,1773269446780,-16084.555831,0.000142,2]
[408230901,1773270631989,-366.82802324,0.00013027,2]
[408230989,1773270637717,-3333.20964342,0.00012897,2]
[408230990,1773270637727,-605.0,0.00013027,2]
[408230991,1773270637736,-185.67631736,0.00013193,2]
[408230992,1773270637746,-469.37283586,0.00013473,2]
[408230993,1773270637758,-30.62716414,0.00013473,2]
[408230994,1773270637768,-174.9251697,0.00013473,2]
[408230995,1773270637777,-320.85731845,0.00013473,2]
[408230996,1773270637786,-300.0,0.00013499,2]
[408230997,1773270637796,-805.30701773,0.00013499,2]
[408230998,1773270637807,-394.69298227,0.00013499,2]
[408230999,1773270637816,-6454.6254911,0.00013499,2]
[408231005,1773270640142,-591.51813598,0.00013499,2]
[408231006,1773270640157,-254.01130894,0.00013499,2]
[408231007,1773270640168,-6967.50351391,0.00013499,2]
[408231008,1773270640179,-1201.41860945,0.00013499,2]
[408231020,1773270642778,-2888.27003825,0.00013499,2]
[408231021,1773270642789,-3500.0,0.00013499,2]
[408231022,1773270642800,-12467.90084128,0.00013499,2]
[408231023,1773270642811,-7645.80169832,0.00013499,2]
[408231024,1773270642894,-5098.51023176,0.00013499,2]
[408231025,1773270642907,-37736.31789411,0.00013499,2]
[408231033,1773270645737,-7727.55368979,0.00013499,2]
[408231034,1773270645850,-2088.0,0.00013499,2]
[408231035,1773270645861,-253.7425319,0.00013499,2]
[408231036,1773270645873,-11400.91257509,0.00013499,2]
[408231037,1773270645883,-14735.0,0.00013499,2]
[408231041,1773271773132,-5000.0,6.963e-05,2]
[408231042,1773271773157,-185.65945819,7.034e-05,2]
[408231043,1773271773177,-520.0,7.069e-05,2]
[408231044,1773271773199,-935.85364043,7.312e-05,2]
[408231066,1773271831824,-523.0,7.312e-05,2]
[408231069,1773271831835,-181.94626903,7.678e-05,2]
[408231071,1773271831844,-250.0,8.683e-05,2]
[408231073,1773271831853,-214.69659745,9.678e-05,2]
[408231075,1773271831862,-950.0,0.000109,2]
[408231078,1773271831870,-300.0,0.00010958,2]
[408231080,1773271831881,-659.0,0.00010958,2]
[408231082,1773271831890,-10676.02845759,0.00010959,2]
[408231084,1773271831901,-455.37603996,0.00010959,2]
[408231127,1773271837894,-1262.01973514,0.00010959,2]
[408231128,1773271837905,-12341.37792317,0.00010959,2]
[408231137,1773271840805,-294.93227138,0.00010959,2]
[408231140,1773271843124,-849.78408493,0.00010959,2]
[408231141,1773271843136,-359.66901507,0.00010959,2]
[408231142,1773271843148,-1119.46594996,0.00010959,2]
[408231143,1773271843160,-1740.02301017,0.00010959,2]
[408231144,1773271843172,-2029.20787857,0.00010959,2]
[408231152,1773271845999,-18872.11563406,0.00010959,2]
[408231153,1773271846011,-247.44692588,0.00011678,2]
[408231154,1773271846021,-950.0,0.000119,2]
[408231155,1773271846030,-300.0,0.00012042,2]
[408231156,1773271846039,-800.0,0.0001268,4]
[408231157,1773271846049,-950.0,0.000129,2]
[408231158,1773271846058,-529.40304214,0.000129,2]
[408231159,1773271846068,-529.4030421,0.00012928,2]
[408231160,1773271846078,-5379.67031836,0.00013399,2]
[408231161,1773271846088,-500.0,0.00013473,2]
[408231162,1773271846098,-337.1350682,0.00013473,2]
[408231163,1773271846106,-500.0,0.00013473,2]
[408231164,1773271846115,-172.94070602,0.00013498,2]
[408231165,1773271846124,-306.19703345,0.00013498,2]
[408231166,1773271846133,-1247.22157747,0.00013499,2]
[408231167,1773272402594,153.05,2e-05,2]
[408231174,1773272964106,-1063.30873709,0.00011832,2]
[408231196,1773273032022,-192.7144246,0.00011574,2]
[408231198,1773273032032,-3446.76645159,0.00011832,2]
[408231200,1773273032041,-587.0,0.00011832,2]
[408231202,1773273032050,-398.92945912,0.00012177,2]
[408231277,1773273038081,-801.07054088,0.00012177,2]
[408231278,1773273038091,-2456.44267146,0.000125,2]
[408231279,1773273038103,-3659.11881055,0.000125,2]
[408231280,1773273038115,-3299.96274465,0.000125,2]
[408231281,1773273038126,-2284.58591915,0.000125,2]
[408231355,1773273043167,-5000.0,0.00012055,2]
[408231356,1773273043178,-18141.58825269,0.000125,2]
[408231357,1773273043188,-182.12970265,0.00012695,2]
[408231358,1773273043199,-800.0,0.00012757,4]
[408231359,1773273043208,-186.6581061,0.00012792,2]
[408231360,1773273043217,-234.0,0.00012938,2]
[408231361,1773273043226,-300.0,0.00012938,2]
[408231362,1773273043236,-782.46568351,0.00012939,2]
[408231363,1773273043245,-742.04638031,0.00013,2]
[408231364,1773273043254,-345.56522346,0.00013069,2]
[408231365,1773273043263,-3816.86527443,0.0001307,2]
[408231366,1773273043272,-5058.75421331,0.0001307,2]
[408231367,1773273043281,-17298.05137503,0.0001307,2]
[408231368,1773273043330,-112.78105601,0.0001307,2]
[408231369,1773273043342,-806.99127554,0.0001307,2]
[408231374,1773273046261,-9683.41306288,0.0001307,2]
[408231377,1773273602367,173.9,2e-05,2]
[408231380,1773274149139,-5000.0,9.366e-05,2]
[408231381,1773274149160,-812.7000002,9.461e-05,2]
[408231382,1773274149181,-187.11247763,9.509e-05,2]
[408231383,1773274149200,-246.43781779,0.0001,2]
[408231384,1773274149223,-1343.74008272,0.0001008,2]
[408231385,1773274149245,-184.95489665,0.000102,2]
[408231386,1773274149266,-204.8402487,0.00010327,2]
[408231387,1773274149287,-1200.0,0.00010378,2]
[408231388,1773274149310,-3579.47553065,0.0001038,2]
[408231389,1773274149330,-3003.60366004,0.00010467,2]
[408231419,1773274232590,-5000.0,0.00010363,2]
[408231420,1773274232600,-565.0,0.00010363,2]
[408231421,1773274232614,-1200.0,0.00010466,2]
[408231422,1773274232624,-3772.20306169,0.00010467,2]
[408231423,1773274232635,-533.95204275,0.00010467,2]
[408231435,1773274238226,-1162.48071908,0.00010467,2]
[408231436,1773274238237,-1484.42550744,0.00010467,2]
[408231437,1773274238246,-1700.0,0.00010952,2]
[408231438,1773274238256,-10280.57449256,0.00010952,2]
[408231477,1773274240647,-5407.22566065,0.00010952,2]
[408231579,1773274243457,-800.0,0.00010843,2]
[408231580,1773274243470,-3965.56444962,0.00010843,2]
[408231586,1773274246263,-234.43555038,0.00010843,2]
[408231587,1773274246273,-34312.19984679,0.00010952,2]
[408231588,1773274246283,-185.78448668,0.00011414,2]
[408231589,1773274246292,-241.89565642,0.00011414,2]
[408231590,1773274246301,-220.79272361,0.00011509,2]
[408231591,1773274246311,-1200.0,0.00011513,2]
[408231592,1773274246320,-151.0,0.00011844,2]
[408231593,1773274246328,-151.0,0.00011844,2]
[408231594,1773274246338,-151.0,0.00011844,2]
[408231595,1773274246347,-151.0,0.00011844,2]
[408231596,1773274246356,-151.0,0.00011844,2]
[408231597,1773274246365,-151.0,0.00011844,2]
[408231598,1773274246376,-151.0,0.00011844,2]
[408231599,1773274246385,-151.0,0.00011844,2]
[408231600,1773274246394,-151.0,0.00011844,2]
[408231601,1773274246403,-203.94798567,0.00011844,2]
[408231602,1773274246413,-661.726,0.00012899,2]
[408231603,1773274246422,-156.606,0.00012969,2]
[408231604,1773274246431,-217.0017831,0.00013064,2]
[408231605,1773274246440,-600.0,0.00013157,2]
[408231606,1773274246449,-8393.0714142,0.0001317,2]
[408231607,1773274246459,-151.0,0.0001317,2]
[408231608,1773274246467,-9375.71716244,0.0001327,2]
[408231609,1773274246476,-166.0,0.00013356,2]
[408231610,1773274246485,-166.0,0.00013356,2]
[408231611,1773274246495,-230.22395277,0.00013356,2]
[408231612,1773274246504,-512.92391896,0.00013356,2]
[408231613,1773274246514,-9422.78923562,0.0001337,2]
[408231614,1773274246522,-151.0,0.0001337,2]
[408231615,1773274246532,-3092.43338798,0.000134,2]
[408231639,1773275432321,-784.05873486,9.848e-05,2]
[408231649,1773275438466,-5000.0,9.75e-05,2]
[408231650,1773275438475,-1318.74940586,9.848e-05,2]
[408231651,1773275438484,-559.0,9.947e-05,2]
[408231652,1773275438494,-195.82698637,9.987e-05,2]
[408231653,1773275438503,-2790.07207694,0.00010027,2]
[408231654,1773275438512,-1200.0,0.00010045,2]
[408231655,1773275438521,-300.0,0.00010046,2]
[408231656,1773275438531,-5594.07263644,0.00010127,2]
[408231657,1773275438540,-6541.66264405,0.00010327,2]
[408231658,1773275438550,-7523.51745029,0.00010913,2]
[408231659,1773275438559,-169.3269595,0.00010999,2]
[408231660,1773275438569,-47183.97843789,0.00011,2]
[408231661,1773275438580,-2507.84039351,0.00011,2]
[408231662,1773275438592,-308.1811686,0.00011,2]
[408231663,1773275438600,-11740.82229874,0.00011,2]
[408231664,1773275438611,-781.08495,0.00011,2]
[408231665,1773275438623,-1766.14640286,0.00011,2]
[408231666,1773275438633,-1126.42542082,0.00011852,2]
[408231711,1773275440950,-2724.78467388,0.00011852,2]
[408231713,1773275440961,-1175.66510949,0.00011852,2]
[408231849,1773275443488,-253.86304573,0.00011852,2]
[408231850,1773275443499,-161.34319862,0.00011987,2]
[408231851,1773275443510,-69.73264529,0.00011987,2]
[408231852,1773275443519,-2069.347855,0.00012089,2]
[408231853,1773275443529,-180.83481925,0.00012477,2]
[408231854,1773275443538,-216.0,0.00012577,2]
[408231855,1773275443548,-2069.347855,0.00012598,2]
[408231856,1773275443558,-7025.1433615,0.00012704,2]
[408231857,1773275443569,-2974.8566385,0.00012704,2]
[408231858,1773275443578,-151.0,0.00012704,2]
[408231859,1773275443588,-1884.0,0.00012777,2]
[408231860,1773275443597,-1884.0,0.00012777,2]
[408231861,1773275443606,-1884.0,0.00012777,2]
[408231862,1773275443615,-1884.0,0.00012777,2]
[408231863,1773275443625,-151.0,0.000129,2]
[408231864,1773275443634,-151.0,0.000129,2]
[408231865,1773275443643,-151.0,0.000129,2]
[408231866,1773275443653,-151.0,0.000129,2]
[408231867,1773275443663,-483.48543135,0.000129,2]
[408231868,1773275443672,-151.0,0.000131,2]
[408231869,1773275443682,-2069.347855,0.00013107,2]
[408231870,1773275443691,-250.0,0.00013143,2]
[408231871,1773275443700,-2811.57107246,0.00013148,2]
[408231872,1773275443710,-5775.12884116,0.00013266,2]
[408231873,1773275443722,-806.99127554,0.00013266,2]
[408231874,1773275443737,-5048.28641934,0.00013266,2]
[408231875,1773275443746,-1512.21744713,0.00013266,2]
[408231876,1773275443761,-869.01369185,0.00013266,2]
[408231877,1773275443772,-1504.3502,0.00013266,2]
[408231881,1773275446515,-8608.76256435,0.00013266,2]
[408231882,1773275446525,-5209.2244437,0.00013266,2]
[408231883,1773275446534,-151.0,0.00013266,2]
[408231884,1773275446543,-151.0,0.00013266,2]
[408231885,1773275446553,-151.0,0.00013266,2]
[408231886,1773275446562,-161.727925,0.00013266,2]
[408231887,1773275446570,-151.0,0.00013266,2]
[408231888,1773275446580,-175.807634,0.00013266,2]
[408231889,1773275446589,-1884.0,0.00013266,2]
[408231890,1773275446599,-1884.0,0.00013266,2]
[408231891,1773275446608,-1884.0,0.00013266,2]
[408231892,1773275446618,-1884.0,0.00013266,2]
[408231893,1773275446627,-1884.0,0.00013266,2]
[408231894,1773275446636,-1884.0,0.00013266,2]
[408231895,1773275446645,-1884.0,0.00013266,2]
[408231896,1773275446655,-1884.0,0.00013266,2]
[408231897,1773275446664,-1884.0,0.00013266,2]
[408231898,1773275446673,-1884.0,0.00013266,2]
[408231899,1773275446682,-1884.0,0.00013266,2]
[408231900,1773275446691,-1884.0,0.00013266,2]
[408231901,1773275446700,-8043.31132363,0.00013278,2]
[408231902,1773275446711,-151.0,0.000133,2]
[408231903,1773275446720,-689.0,0.00013323,2]
[408231904,1773275446729,-338.0,0.00013323,2]
[408231905,1773275446739,-338.0,0.00013323,2]
[408231906,1773275446748,-163.43040921,0.00013323,2]
[408231907,1773275446758,-154.42924555,0.00013323,2]
[408231908,1773275446766,-166.7,0.000134,2]
[408231909,1773275446776,-37151.79582112,0.000134,2]
[408231931,1773276365329,10000.0,2.001e-05,2]
[408231932,1773276386991,534.39,2.001e-05,2]
[408232033,1773276632924,-3435.08345444,8.332e-05,2]
[408232040,1773276632979,-741.16346069,8.332e-05,2]
[408232046,1773276633034,-597.0,8.332e-05,2]
[408232401,1773276638851,-1583.86677274,8.249e-05,2]
[408232403,1773276638864,-3416.13322726,8.249e-05,2]
[408232405,1773276638874,-226.75308487,8.332e-05,2]
[408232407,1773276638884,-1098.26144718,8.416e-05,2]
[408232409,1773276638894,-539.0,8.501e-05,2]
[408232411,1773276638903,-1063.30873709,8.501e-05,2]
[408232413,1773276638913,-207.63146761,8.551e-05,2]
[408232415,1773276638922,-300.0,8.687e-05,2]
[408232417,1773276638931,-300.0,8.687e-05,2]
[408232418,1773276638940,-1200.0,8.687e-05,2]
[408232419,1773276639224,-1680.0,9.556e-05,2]
[408232420,1773276639248,-726.24112291,0.0001,2]
[408232421,1773276639258,-726.24112291,0.00010486,2]
[408232422,1773276639267,-128.97905789,0.00010487,2]
[408232423,1773276639297,-518.0,0.00010511,2]
[408232424,1773276639308,-245.00513177,0.00010551,2]
[408232425,1773276639317,-726.24112291,0.00010973,2]
[408232426,1773276639327,-479.65374531,0.00010973,2]
[408232453,1773276641090,-129.94925469,0.00010973,2]
[408232454,1773276641099,-726.24112291,0.00011459,7]
[408232455,1773276641108,-160.886862,0.00011855,2]
[408232456,1773276641118,-154.0,0.000119,2]
[408232457,1773276641127,-7.45055747,0.000119,2]
[408232462,1773276645234,-146.54944253,0.000119,2]
[408232463,1773276645244,-250.0,0.00011903,2]
[408232464,1773276645254,-173.45055747,0.00011946,7]
[408232488,1773276646652,-552.79056544,0.00011946,7]
[408232489,1773276646662,-726.24112291,0.00012432,7]
[408232490,1773276646671,-282.37879594,0.00012551,2]
[408232491,1773276646681,-423.04975244,0.000129,2]
[408232492,1773276646690,-726.24112291,0.00012919,7]
[408232493,1773276646699,-154.0,0.00013,2]
[408232494,1773276646709,-1957.856,0.00013138,2]
[408232495,1773276646719,-162.380719,0.00013138,2]
[408232496,1773276646728,-168.3888056,0.00013138,2]
[408232497,1773276646737,-174.61919141,0.00013138,2]
[408232498,1773276646747,-181.08010149,0.00013138,2]
[408232499,1773276646757,-187.78006525,0.00013138,2]
[408232500,1773276646766,-194.72792766,0.00013138,2]
[408232501,1773276646775,-201.93286099,0.00013138,2]
[408232502,1773276646784,-209.40437684,0.00013138,2]
[408232503,1773276646794,-975.57528028,0.00013138,2]
[408232504,1773276646805,-3383.49725234,0.00013138,2]
[408232505,1773276646814,-217.15233878,0.00013138,2]
[408232506,1773276646823,-225.18697532,0.00013138,2]
[408232507,1773276646832,-233.51889341,0.00013138,2]
[408232508,1773276646841,-242.15909246,0.00013138,2]
[408232509,1773276646850,-2150.738,0.00013138,2]
[408232510,1773276646859,-251.11897888,0.00013138,2]
[408232511,1773276646868,-260.4103811,0.00013138,2]
[408232512,1773276646877,-270.0455652,0.00013138,2]
[408232513,1773276646886,-196.34133261,0.00013138,2]
[408232514,1773276646895,-2030.296672,0.00013193,2]
[408232515,1773276646904,-155.0,0.000132,2]
[408232516,1773276646914,-155.0,0.000132,3]
[408232517,1773276646923,-566.4571067,0.00013248,2]
[408232518,1773276646932,-423.04975239,0.00013393,2]
[408232519,1773276646941,-1000.0,0.000134,2]
[408232520,1773276646951,-864.98815374,0.000134,2]
[408232521,1773276646962,-135.01184626,0.000134,2]
[408232522,1773276646972,-1000.0,0.000134,2]
[408232523,1773276646982,-1000.0,0.000134,2]
[408232524,1773276646992,-981.09876921,0.000134,2]
[408232525,1773276647000,-179.9318582,0.000134,2]
[408232526,1773276647010,-2333.53576115,0.000134,2]
[408232566,1773276905084,212.4,0.000102,120]
[408232672,1773277831704,-2466.76064842,8.558e-05,2]
[408232679,1773277831759,-431.75,8.558e-05,2]
[408232682,1773277831772,-413.73,8.558e-05,2]
[408232686,1773277831784,-409.59267507,8.558e-05,2]
[408232689,1773277831795,-419.418,8.558e-05,2]
[408232692,1773277831806,-834.71197419,8.558e-05,2]
[408233033,1773277837719,-24.03670232,8.558e-05,2]
[408233035,1773277837728,-5000.0,8.644e-05,2]
[408233037,1773277837738,-1200.0,8.731e-05,2]
[408233039,1773277837749,-542.0,8.732e-05,2]
[408233041,1773277837758,-236.04983948,8.954e-05,2]
[408233043,1773277837768,-294.48724911,9.275e-05,2]
[408233045,1773277837776,-1808.334375,9.461e-05,2]
[408233047,1773277837786,-7322.9352225,9.464e-05,2]
[408233049,1773277837795,-758.0,9.604e-05,2]
[408233051,1773277837803,-1808.334375,9.859e-05,2]
[408233053,1773277837812,-50000.0,9.973e-05,2]
[408233054,1773277837821,-500.0,9.973e-05,2]
[408233055,1773277837830,-321.92903304,9.996e-05,2]
[408233056,1773277837841,-178.07096696,9.996e-05,2]
[408233057,1773277837850,-500.0,9.996e-05,2]
[408233058,1773277837859,-131.03213304,9.996e-05,2]
[408233059,1773277837870,-368.96786696,9.996e-05,2]
[408233060,1773277837879,-500.0,9.996e-05,2]
[408233061,1773277837888,-500.0,9.996e-05,2]
[408233062,1773277837897,-500.0,9.996e-05,2]
[408233063,1773277837906,-185.62283354,9.996e-05,2]
[408233064,1773277837915,-500.0,9.996e-05,2]
[408233065,1773277837925,-500.0,9.996e-05,2]
[408233066,1773277837934,-500.0,9.996e-05,2]
[408233067,1773277837943,-500.0,9.996e-05,2]
[408233068,1773277837952,-500.0,9.996e-05,2]
[408233069,1773277837961,-500.0,9.996e-05,2]
[408233070,1773277837970,-500.0,9.996e-05,2]
[408233071,1773277837979,-500.0,9.996e-05,2]
[408233072,1773277837987,-500.0,9.996e-05,2]
[408233073,1773277837997,-500.0,9.996e-05,2]
[408233074,1773277838006,-500.0,9.996e-05,2]
[408233075,1773277838015,-500.0,9.996e-05,2]
[408233076,1773277838024,-500.0,9.996e-05,2]
[408233077,1773277838033,-298.92814788,9.996e-05,2]
[408233078,1773277838043,-500.0,9.996e-05,2]
[408233079,1773277838052,-500.0,9.996e-05,2]
[408233080,1773277838061,-500.0,9.996e-05,2]
[408233081,1773277838070,-500.0,9.996e-05,2]
[408233082,1773277838079,-500.0,9.996e-05,2]
[408233083,1773277838088,-500.0,9.996e-05,2]
[408233084,1773277838097,-500.0,9.996e-05,2]
[408233085,1773277838106,-500.0,9.996e-05,2]
[408233086,1773277838115,-500.0,9.996e-05,2]
[408233087,1773277838124,-500.0,9.996e-05,2]
[408233088,1773277838133,-500.0,9.996e-05,2]
[408233089,1773277838142,-500.0,9.996e-05,2]
[408233090,1773277838151,-500.0,9.996e-05,2]
[408233091,1773277838160,-500.0,9.996e-05,2]
[408233092,1773277838169,-368.73282597,9.996e-05,2]
[408233093,1773277838178,-2128.56441104,0.0001,2]
[408233094,1773277838187,-290.92187328,0.0001,2]
[408233095,1773277838196,-28000.98069367,0.0001,2]
[408233096,1773277838207,-3685.9226452,0.0001,2]
[408233097,1773277838218,-3333.4753168,0.0001,2]
[408233098,1773277838229,-1147.59592707,0.0001,2]
[408233140,1773277840267,-841.52588397,0.0001,2]
[408233141,1773277840321,-1692.7,0.0001,2]
[408233167,1773277842867,-4587.0657763,0.0001,2]
[408233168,1773277842975,-6254.6594506,0.0001,2]
[408233169,1773277842987,-302.62139999,0.0001,2]
[408233170,1773277842998,-398.23481701,0.0001,2]
[408233171,1773277843011,-806.99127554,0.0001,2]
[408233172,1773277843021,-2218.61898699,0.0001,2]
[408233173,1773277843032,-2459.88076605,0.0001,2]
[408233186,1773277845739,-5000.0,9.9e-05,2]
[408233187,1773277845748,-42103.630665,0.0001,2]
[408233188,1773277845758,-1000.0,0.0001,2]
[408233189,1773277845767,-3464.09504273,0.0001,2]
[408233190,1773277845777,-1281.4492988,0.0001,2]
[408233191,1773277845787,-500.0,0.0001,2]
[408233192,1773277845796,-246.43781779,0.0001,2]
[408233193,1773277845805,-1808.334375,0.00010257,2]
[408233194,1773277845814,-500.0,0.00010274,2]
[408233195,1773277845823,-250.0,0.00010411,2]
[408233196,1773277845832,-31953.08186469,0.00010474,2]
[408233197,1773277845841,-930.26519296,0.00010521,2]
[408233198,1773277845850,-532.35129047,0.00010548,2]
[408233199,1773277845860,-1124.83719981,0.0001057,2]
[408233200,1773277845869,-427.13147491,0.00010618,2]
[408233201,1773277845878,-1808.334375,0.00010655,2]
[408233202,1773277845888,-2205.50472078,0.0001067,2]
[408233203,1773277845897,-2830.41576795,0.0001087,2]
[408233204,1773277845906,-278.53881059,0.00010954,2]
[408233205,1773277845915,-10824.99107059,0.00010959,2]
[408233207,1773277846546,-1399.0,0.00010959,2]
[408233208,1773277846557,-983.43426962,0.00010959,2]
[408233209,1773277846569,-3408.59265944,0.00010959,2]
[408233210,1773277846580,-4229.14085365,0.00010959,2]
[408233211,1773277846589,-151.0,0.00011,2]
[408233212,1773277846598,-151.0,0.00011,2]
[408233213,1773277846607,-1808.334375,0.00011054,2]
[408233214,1773277846617,-151.0,0.000112,2]
[408233215,1773277846627,-151.0,0.000112,2]
[408233216,1773277846636,-1808.334375,0.00011452,2]
[408233217,1773277846645,-151.0,0.000115,2]
[408233218,1773277846655,-151.0,0.000115,2]
[408233219,1773277846664,-151.0,0.000117,2]
[408233220,1773277846673,-151.0,0.000117,2]
[408233221,1773277846682,-3215.24681935,0.0001193,2]
[408233222,1773277846691,-151.0,0.00012,2]
[408233223,1773277846701,-151.0,0.00012,2]
[408233224,1773277846713,-4787.74703727,0.00012163,2]
[408233242,1773278402310,172.95,2e-05,2]
[408233243,1773278402573,172.95,2e-05,2]
[408233244,1773278402837,172.95,2e-05,2]
[408233245,1773278403120,172.95,2e-05,2]
[408233287,1773279031800,-5000.0,0.00010335,2]
[408233289,1773279031809,-159.494275,0.00010439,2]
[408233291,1773279031818,-566.0,0.00010439,2]
[408233292,1773279031827,-5000.0,0.0001078,2]
[408233294,1773279031837,-300.0,0.00010888,2]
[408233296,1773279031845,-155.0,0.00010888,2]
[408233298,1773279031854,-300.0,0.00010888,2]
[408233299,1773279031863,-1200.0,0.00010888,2]
[408233301,1773279031872,-250.06243668,0.00010999,2]
[408233303,1773279031881,-10000.0,0.00011,2]
[408233305,1773279031891,-2660.17250185,0.00011777,2]
[408233307,1773279031902,-2100.37719293,0.00011777,2]
[408233309,1773279031912,-1006.81783792,0.00011777,2]
[408233311,1773279031923,-407.03070456,0.00011777,2]
[408233371,1773279038155,-1364.13669205,0.00011777,2]
[408233373,1773279038167,-1160.22783125,0.00011777,2]
[408233376,1773279038182,-9730.77146505,0.00011777,2]
[408233513,1773279040617,-5000.0,0.00011659,2]
[408233514,1773279040626,-59.02002272,0.00011777,2]
[408233515,1773279040637,-1182.23481858,0.00011777,2]
[408233516,1773279040648,-5500.023309,0.00011777,2]
[408233522,1773279045164,-8048.35774867,0.00011777,2]
[408233523,1773279045178,-5233.88109999,0.00011777,2]
[408233531,1773279045982,-11546.94877543,0.00011777,2]
[408233532,1773279045991,-1320.80554469,0.00011777,2]
[408233533,1773279046000,-2624.66525487,0.00011877,2]
[408233534,1773279046012,-488.41453117,0.00011939,2]
[408233535,1773279046022,-152.08142511,0.00011939,2]
[408233536,1773279046035,-644.32534977,0.00011939,2]
[408233537,1773279046044,-500.0,0.00011939,2]
[408233538,1773279046054,-576.18031484,0.00011939,2]
[408233539,1773279046064,-523.15360241,0.00011941,2]
[408233540,1773279046073,-303.0,0.00011966,2]
[408233541,1773279046082,-3928.52496505,0.00011977,2]
[408233542,1773279046091,-5195.77868235,0.00012163,2]
[408233543,1773279046101,-1000.0,0.00012163,2]
[408233544,1773279046110,-864.98815374,0.00012163,2]
[408233545,1773279046119,-151.0,0.00012163,2]
[408233546,1773279046129,-151.0,0.00012163,2]
[408233547,1773279046138,-151.0,0.00012163,2]
[408233548,1773279046147,-151.0,0.00012163,2]
[408233549,1773279046156,-151.0,0.00012163,2]
[408233550,1773279046168,-151.0,0.00012163,2]
[408233551,1773279046177,-151.0,0.00012163,2]
[408233552,1773279046186,-151.0,0.00012163,2]
[408233553,1773279046197,-151.0,0.00012163,2]
[408233554,1773279046208,-151.0,0.00012163,2]
[408233555,1773279046218,-151.3328701,0.00012163,2]
[408233556,1773279046228,-5205.93571821,0.00012177,2]
[408233557,1773279046237,-151.0,0.000122,2]
[408233558,1773279046248,-151.0,0.000122,2]
[408233559,1773279046257,-5232.38467523,0.00012277,2]
[408233560,1773279046266,-2386.93496656,0.00012329,2]
[408233561,1773279100582,-2319.73053805,0.00011542,2]
[408233576,1773279197426,-2680.26946195,0.00011542,2]
[408233577,1773279197458,-257.24728698,0.00011601,2]
[408233578,1773279197480,-168.55212997,0.00011659,2]
[408233579,1773279197502,-1893.9311211,0.00012328,2]
[408233580,1773279199056,-5000.0,0.00012328,2]
[408233581,1773279200569,-5000.0,0.00012328,2]
[408233582,1773279201778,-5000.0,0.00012328,2]
[408233583,1773279202969,-5000.0,0.00012328,2]
[408233584,1773279203963,-5000.0,0.00012328,2]
[408233585,1773279204952,-5000.0,0.00012328,2]
[408233586,1773279205935,-5000.0,0.00012328,2]
[408233587,1773279206915,-5000.0,0.00012328,2]
[408233588,1773279207932,-5000.0,0.00012328,2]
[408233589,1773279208872,-3106.0688789,0.00012328,2]
[408233590,1773279208893,-500.0,0.00012328,2]
[408233591,1773279208914,-500.0,0.00012328,2]
[408233592,1773279208935,-500.0,0.00012328,2]
[408233593,1773279208955,-393.9311211,0.00012328,2]
[408233594,1773279210028,-106.0688789,0.00012328,2]
[408233595,1773279210053,-500.0,0.00012328,2]
[408233596,1773279210077,-500.0,0.00012328,2]